Cogmind - Beta 9.6 @@@ ROGUE MODE // 2020.07.27 @ 19:26:02 Player: Phillammon Result: Destroyed by G-47 Trooper with Particle Gun Performance ------------- Evolutions (1) 500 Regions Visited (2) 400 Robots Destroyed (3) 15 Value Destroyed (115) 115 Prototype IDs (0) 0 Alien Tech Used (0) 0 Bonus (0) 0 TOTAL SCORE: 1030 Bonus ------- None Cogmind --------- Core Integrity 0/400 Matter 300/300 Energy 99/100 System Corruption 0% Temperature Cool (15) Movement Core (50) Location -9/Materials Parts ------- > --- POWER (1) -------- (None) > --- PROPULSION (4) --- (None) > --- UTILITY (2) ------ (None) > --- WEAPON (2) ------- (None) > --- INVENTORY (4) ---- Light Treads Sensor Array Light Assault Rifle Light Assault Rifle Peak State ------------ > --- POWER ------------ Light Ion Engine > --- PROPULSION ------- Light Treads Compact Wheel > --- UTILITY ---------- Small Storage Unit Small Storage Unit > --- WEAPON ----------- Light Assault Rifle Light Assault Rifle > --- INVENTORY -------- Ion Engine Light Treads Wheel Light Assault Rifle Light Assault Rifle [Rating: 7] Favorites ----------- Power Light Ion Engine Engine Light Ion Engine Propulsion Light Treads Treads Light Treads Leg Aluminum Leg Wheel Compact Wheel Utility Small Storage Unit Storage Small Storage Unit Weapon Light Assault Rifle Energy Gun Small Laser Ballistic Gun Light Assault Rifle Build | -11 -10 -9 ------- Run | Scr Mat Mat Slots Evolved 2 | . . 2 Power . | . . . Propulsion 2 | . . 2 Utility . | . . . Weapon . | . . . Parts Attached 7 | 2 3 2 Power 1 | . . 1 Engine 1 | . . 1 Core . | . . . Reactor . | . . . Propulsion 3 | 2 . 1 Treads 1 | 1 . . Leg . | . . . Wheel 2 | 1 . 1 Hover . | . . . Flight . | . . . Utility 1 | . 1 . Device . | . . . Storage 1 | . 1 . Processor . | . . . Hackware . | . . . Protection . | . . . Artifact . | . . . Weapon 2 | . 2 . Energy Gun . | . . . Energy Cannon . | . . . Ballistic Gun 2 | . 2 . Ballistic Cannon . | . . . Launcher . | . . . Special Weapon . | . . . Impact Weapon . | . . . Slashing Weapon . | . . . Piercing Weapon . | . . . Special Melee Weapon . | . . . Unidentified Prototypes . | . . . Parts Lost 6 | . . 6 Power 1 | . . 1 Propulsion 3 | . . 3 Utility . | . . . Weapon 2 | . . 2 Highest Loss Streak 6 | . . 6 Average Slot Usage (%) 78 | . 97 66 Engine 10 | . 14 8 Treads 11 | . 14 9 Wheel 11 | . 14 9 Storage 23 | . 26 20 Ballistic Gun 20 | . 25 17 Naked Turns 13 | . . 13 Heaviest Build 13 | 10 13 13 Greatest Support 16 | 16 16 16 Greatest Overweight (x) 2 | . . 2 Average Overweight (x) . | . . . Largest Inventory Capacity 8 | 6 8 8 Average Capacity 7 | 6 7 7 Most Carried 6 | 6 6 6 Average Carried 5 | 5 5 5 Final Capacity 8 | 6 8 4 Final Carried 5 | 4 5 4 Class Distribution -------------------- 100% | Mutant Dominant Class ---------------- Mutant | -10/Materials Mutant | -9/Materials Resources | -11 -10 -9 ----------- Run | Scr Mat Mat Matter Collected 296 | 205 91 . Remotely . | . . . Salvage Created 112 | . 112 . Parts 7 | . 7 . Haulers Intercepted . | . . . Recyclers Shooed . | . . . Parts Field Recycled . | . . . Retrieved Matter . | . . . Parts Self-Destructed . | . . . Prevented . | . . . Kills | -11 -10 -9 ------- Run | Scr Mat Mat Combat Hostiles Destroyed 3 | . 3 . Guns 3 | . 3 . Classes Destroyed 1 | . 1 . Grunt 3 | . 3 . Best Kill Streak 3 | . 3 . Combat Bots Only 3 | . 3 . Max Kills in Single Turn 1 | . 1 . Gunslinging . | . . . Exploded . | . . . Melee . | . . . Uniques/NPCs Destroyed . | . . . Combat | -11 -10 -9 -------- Run | Scr Mat Mat Damage Taken 955 | . 180 775 Core 460 | . 55 405 Absorbed by Shields . | . . . Core Remaining (%) 89 | 100 78 . Volleys Fired 26 | . 24 2 Largest 2 | . 2 2 Hottest 40 | . 40 40 Shots Fired 52 | . 48 4 Gun 52 | . 48 4 Cannon . | . . . Launcher . | . . . Special . | . . . Kinetic 52 | . 48 4 Thermal . | . . . Explosive . | . . . Electromagnetic . | . . . Robot Hit Streak 10 | . 10 2 Robot Miss Streak 3 | . 3 1 Penetration Max . | . . . Secondary Targets 1 | . 1 . Max Gunslinging Chain 1 | . 1 . Shots Hit Robots 33 | . 30 3 Core Hits 11 | . 10 1 Critical Hits . | . . . Critical Kills . | . . . Critical Parts Destroyed . | . . . Melee Attacks . | . . . Impact . | . . . Slashing . | . . . Piercing . | . . . Sneak Attacks . | . . . Combat Hostiles . | . . . Follow-up Attacks . | . . . Damage Inflicted 201 | . 165 36 Guns 188 | . 165 23 Cannons . | . . . Explosions . | . . . Melee . | . . . Ramming 13 | . . 13 Kinetic 188 | . 165 23 Thermal . | . . . Explosive . | . . . Electromagnetic . | . . . Impact . | . . . Slashing . | . . . Piercing . | . . . Highest Corruption . | . . . Average Corruption . | . . . Corruption Purged . | . . . Overload Shots . | . . . Overflow Damage . | . . . Projectiles . | . . . Explosions . | . . . Melee . | . . . Knockbacks . | . . . Impact . | . . . Kinetic . | . . . Secondary . | . . . Self-Inflicted Damage 6 | . . 6 Shots . | . . . Rammed 3 | . . 3 Targets Rammed 3 | . . 3 Kicked . | . . . Crushed . | . . . Highest Temperature 15 | . 15 . Average Temperature 8 | . 8 . Received Heat Transfer 444 | . 102 342 Siege Activations . | . . . Robots Corrupted . | . . . Combat Hostiles . | . . . Parts Fried . | . . . Impact Corruptions . | . . . Robots Melted . | . . . Combat Hostiles . | . . . Parts Melted . | . . . Heat Transferred . | . . . Parts Sabotaged . | . . . Parts Stolen . | . . . Parts Stripped . | . . . Power Chain Reactions . | . . . Missiles Intercepted . | . . . Alert | -11 -10 -9 ------- Run | Scr Mat Mat Peak Influence 113 | . 80 113 Average Influence 52 | . 29 68 Maximum Alert Level . | . . . Low Security (%) 100 | 100 100 100 Level 1 . | . . . Level 2 . | . . . Level 3 . | . . . Level 4 . | . . . Level 5 . | . . . High Security . | . . . Max Security . | . . . Squads Dispatched 4 | . 2 2 Investigation 1 | . 1 . Extermination . | . . . Reinforcement 3 | . 1 2 Assault . | . . . Garrison . | . . . Intercept . | . . . Construction Impeded . | . . . Haulers Reinforced . | . . . Stealth | -11 -10 -9 --------- Run | Scr Mat Mat Distress Signals . | . . . Communications Jammed . | . . . Distress Signals . | . . . Times Spotted 19 | . 6 13 Peak Tracking Total 9 | . 3 9 Tactical Retreats . | . . . Traps | -11 -10 -9 ------- Run | Scr Mat Mat Traps Triggered 1 | . 1 . Indirectly . | . . . Trap Hack Attempts . | . . . Triggered . | . . . Disarmed . | . . . Reprogrammed . | . . . Reused . | . . . Traps Extracted . | . . . Installed . | . . . Triggered . | . . . Machines | -11 -10 -9 ---------- Run | Scr Mat Mat Machines Disabled . | . . . Max in Single Turn . | . . . Machines Sabotaged . | . . . Garrisons Compromised . | . . . Overloaded Fab Kills . | . . . Fab Network Shutdowns . | . . . Hacking | -11 -10 -9 --------- Run | Scr Mat Mat Machines Accessed 4 | . 1 3 Terminals 4 | . 1 3 Fabricators . | . . . Repair Stations . | . . . Recycling Units . | . . . Scanalyzers . | . . . Garrison Access . | . . . Total Hacks 14 | . 3 11 Successful 6 | . 1 5 Failed 8 | . 2 6 Catastrophic . | . . . Database Lockouts . | . . . Manual 14 | . 3 11 Terminals 14 | . 3 11 Fabricators . | . . . Repair Stations . | . . . Recycling Units . | . . . Scanalyzers . | . . . Garrison Access . | . . . Terminal Hacks 1 | . . 1 Terminal Index 1 | . . 1 Fabricator Hacks . | . . . Repair Station Hacks . | . . . Recycling Unit Hacks . | . . . Scanalyzer . | . . . Garrison Access Hacks . | . . . Unauthorized Hacks 5 | . 1 4 Terminals 5 | . 1 4 Assimilate 1 | . . 1 Botnet 3 | . 1 2 Operators 1 | . . 1 Fabricators . | . . . Repair Stations . | . . . Recycling Units . | . . . Scanalyzers . | . . . Garrison Access . | . . . Data Cores Recovered . | . . . Used . | . . . Hacking Detections 3 | . 1 2 Full Trace Events 1 | . . 1 Feedback Events . | . . . Feedback Blocked . | . . . Robot Schematics Acquired . | . . . Robots Built . | . . . Matter . | . . . Time . | . . . Total Robot Build Rating . | . . . Part Schematics Acquired . | . . . Parts Built . | . . . Matter . | . . . Time . | . . . Total Part Build Rating . | . . . Parts Repaired . | . . . Time . | . . . Parts Recycled . | . . . Recycled Matter . | . . . Retrieved Matter . | . . . Retrieved Components . | . . . Parts Scanalyzed . | . . . Part Schematics Acquired . | . . . Parts Damaged . | . . . Bothacking | -11 -10 -9 ------------ Run | Scr Mat Mat Used RIF Installer . | . . . Robots Hacked . | . . . Non-combat . | . . . Combat . | . . . Robot Hacks Applied . | . . . Relay Couplers Released . | . . . Robots Rewired . | . . . Allies Hacked . | . . . Hacks Repelled . | . . . Allies | -11 -10 -9 -------- Run | Scr Mat Mat Total Allies . | . . . Largest Group . | . . . Highest-Rated Group . | . . . Highest-Rated Ally . | . . . Total Orders . | . . . Ally Attacks . | . . . Total Damage . | . . . Kills . | . . . Allies Corrupted . | . . . Allies Melted . | . . . Intel | -11 -10 -9 ------- Run | Scr Mat Mat Robot Analysis Total . | . . . Derelict Logs Recovered . | . . . Drone Launches . | . . . Drone Recoveries . | . . . Exploration | -11 -10 -9 ------------- Run | Scr Mat Mat Turns Passed 560 | 7 221 332 Spaces Moved 378 | 3 151 224 Core 25 | . . 25 Treads . | . . . Legs . | . . . Wheels 353 | 3 151 199 Hover . | . . . Flight . | . . . Fastest Speed 50 | 100 100 50 Average Speed 97 | 100 100 96 Slowest Speed 150 | 100 100 150 Overloaded Moves . | . . . Propulsion Burnouts . | . . . Robots Hopped . | . . . Cave-ins Triggered . | . . . Exploration Rate (%) 16 | 2 29 18 Regions Visited 2 Branch Regions . Pre-discovered Areas . | . . . Known Exits Taken . | . . . Unknown Exits Taken 2 | 1 1 . Scrap Searched . | . . . Spaces Dug . | . . . Terrain Destroyed . | . . . Melee . | . . . Projectile . | . . . AOE . | . . . Actions | -11 -10 -9 --------- Run | Scr Mat Mat Total 527 | 6 183 338 Wait 102 | . . 102 Move 376 | 2 150 224 Hop . | . . . Pick Up 5 | . 3 2 Fast Attach 2 | . 2 . Attach 3 | . 1 2 Detach . | . . . Swap 2 | 2 . . Drop 8 | 2 3 3 Fire 26 | . 24 2 Melee . | . . . Ram 3 | . . 3 Kick . | . . . Crush . | . . . Escape Stasis . | . . . Rewire . | . . . Trap . | . . . Miscellaneous . | . . . Route ------- -11/Scrapyard -10/Materials -9/Materials History --------- Turn | Location | Event 6 | -11/Scrapyard | Discovered new exit (range 1) 8 | -11/Scrapyard | Entered Materials 215 | -10/Materials | Discovered new exit (range 15) 229 | -10/Materials | Entered another Materials area 229 | -9/Materials | Evolved 2 slots: Propulsion x2 313 | -9/Materials | Build established: Mutant 555 | -9/Materials | Core integrity fell below 50% 559 | -9/Materials | Core integrity fell below 20% 561 | -9/Materials | Destroyed by G-47 Trooper with Particle Gun Last Messages --------------- 00462_ K-01 Serf collects debris. 00480_ O-16 Technician: "IFF HANDSHAKE FAILED. SECURING TERMINAL." 00489_ ALERT: Hostiles spotted, dispatching reinforcements to Terminal M005. 00490_ Lgt. Assault Rifle destroyed. 00496_ Lgt. Ion Engine destroyed. 00505_ Lgt. Assault Rifle destroyed. 00517_ Com. Wheel destroyed. 00524_ Lgt. Treads destroyed. 00528_ K-01 Serf cleans the Matter Filter. 00535_ Wheel destroyed. 00545_ Acquired Deuterium Engine. 00547_ Dropped Deuterium Engine. 00548_ Dropped Sml. Storage Unit. 00555_ Slammed into G-34 Mercenary. 00555_ K-01 Serf cleans the Matter Filter. 00556_ R-06 Scavenger collects Ion Engine. 00556_ Slammed into G-34 Mercenary. 00559_ R-06 Scavenger collects Sml. Storage Unit. 00561_ U-05 Engineer lays Concrete. Map ----- +----------------------------------------------------+ | | | | | | | ??????????????????????????????????????##########?? | | ???#######???????????????????????????# #?? | | #### #???????????????????????????# #?? | | ############################# #?? | | T + #?? | | ### ################# ####### #?? | | #### #?# #????????????####+### # #?? | | ???###+##### #????????????# # # #?? | | ?????# ## #????????????# # # #?? | | ?????# ## #????????????# + ###+#######?? | | ?????# ## #????????????# # #????? | | ?????# [ ## #????????????# # #????? | | ?????# ## #????????????# # "T" #????? | | ?????# ## #????????????######## ##????? | | ?????# ## #???????????????????# o ##????? | | ?? ####### #???????#######?????# """ "#????? | | ?????/o ######### ####### """ T#????? | | ????????# """ "#????? | | ????????# """ ##????? | | ????????# a """ #?????? | | ????????######## ##### ###### ???? | | ?????????????###/###### ##?##?# ?? | | ?????????????# # @#? ??# """ ?? | | ?????????????# """"" # #?"?? # """ ? | | ?????????????# """"" # # "T" # """ ###?? | | ?????????????# """"" # # # """ #???? | | ?????????????# """"" kg + ! # """ #???? | | ?????????????# """"" #ggg# # #???? | | ?????????????# """"" # gY#?? # #???? | | ?????????????# """"" # u #????## +???? | | ?????????????# # ####### ????? | | ?????????????########## # # ?? ????? | | ??????????????????????# # ######???????????? | | ??????????????????????# + #????????????????? | | ??????????????????????# r # ! #????????????????? | | ?????????????????????##ru #######????????????????? | | ?????????????????????# ! #????????????????????? | | ?????????????????????#**!!!!#????????????????????? | | ?????????????????????#**!!!!#????????????????????? | | ?????????????????????########????????????????????? | | ?????????????????????????????????????????????????? | | ?????????????????????????????????????????????????? | | ?????????????????????????????????????????????????? | | ????????????????????????????????????????????o????? | | ?????????????????????????????????????????????????? | | ?????????????????????????????????????????????????? | | ?????????????????????????????????????????????????? | +----------------------------------------------------+ Best States ------------- Heat Dissipation 28 Energy Generation 10 Energy Capacity 125 Matter Stores 300 Matter Capacity 300 Sight Range 16 Terrain Scan Density 10 Evasion (%) 50 Recoil Reduction 1 Item Schematics ----------------- None Robot Schematics ------------------ None Fabricated ------------ Nothing Alien Tech Used ----------------- None Achievements -------------- None Challenges ------------ None Game ------ Seed GravmagDisruptorDiverter Manual? 0 Play Time 00:08:49 Cumulative 18.7 hours Start 2020.07.27 @ 19:20:09 End 2020.07.27 @ 19:26:02 Sessions 1 Manual Loads 0 Difficulty Rogue Special Mode None Game No. 57 Rogue 57 Adventurer 0 Explorer 0 Win Type - Total 0 Types 0/0/0/0/0/0/0 Lore% 22 Gallery% 27 Achievement% 27 Wizard Run 0 Options --------- ASCII 0 Keyboard 0 Movement Mouse Keybinds 0 Fullscreen 1 Font 18/SmallcapsGlow Map View 76x50 Tactical HUD 1 Map Filters NONE Filters NONE Steam 0 RUN: 083497f8-6567-4419-a228-736ae041ed04